fUSD/lending_fUSD_20260420
["ID","MTS","AMOUNT","RATE_DAILY","PERIOD"]
[420844181,1776624638141,-151.0,0.00011189,2]
[420844183,1776624638151,-200.0,0.00011189,2]
[420844185,1776624638161,-151.0,0.00011189,2]
[420844187,1776624638170,-151.0,0.00011189,2]
[420844189,1776624638180,-151.0,0.00011189,2]
[420844191,1776624638190,-151.0,0.00011189,2]
[420844193,1776624638199,-500.0,0.00011189,2]
[420844195,1776624638208,-500.0,0.00011189,2]
[420844197,1776624638217,-178.08835478,0.00011189,2]
[420844199,1776624638226,-586.54570469,0.00011189,2]
[420844200,1776624638237,-151.0,0.00011189,2]
[420844202,1776624638246,-151.0,0.00011189,2]
[420844205,1776624638256,-151.0,0.00011189,2]
[420844207,1776624638266,-151.0,0.00011189,2]
[420844209,1776624638275,-151.0,0.00011189,2]
[420844211,1776624638284,-151.0,0.00011189,2]
[420844213,1776624638293,-151.0,0.00011189,2]
[420844215,1776624638303,-151.0,0.00011189,2]
[420844217,1776624638312,-151.0,0.00011189,2]
[420844219,1776624638321,-151.0,0.00011189,2]
[420844221,1776624638331,-151.0,0.00011189,2]
[420844222,1776624638340,-151.0,0.00011189,2]
[420844223,1776624638350,-151.0,0.00011189,2]
[420844224,1776624638359,-151.0,0.00011189,2]
[420844225,1776624638368,-151.0,0.00011189,2]
[420844226,1776624638379,-151.0,0.00011189,2]
[420844227,1776624638388,-151.0,0.00011189,2]
[420844228,1776624638398,-151.0,0.00011189,2]
[420844229,1776624638407,-151.0,0.00011189,2]
[420844230,1776624638416,-151.0,0.00011189,2]
[420844231,1776624638426,-151.0,0.00011189,2]
[420844232,1776624638435,-500.0,0.0001119,2]
[420844233,1776624638445,-10164.0542163,0.00011196,2]
[420844234,1776624638454,-5381.4319957,0.00011208,2]
[420844235,1776624638463,-500.0,0.000114,2]
[420844236,1776624638472,-1680.0,0.00011424,2]
[420844237,1776624638482,-232.03,0.00011424,2]
[420844238,1776624638491,-160.08400924,0.0001146,2]
[420844239,1776624638501,-160.09506695,0.0001146,2]
[420844240,1776624638511,-401.27508644,0.0001146,2]
[420844241,1776624638521,-500.0,0.00011464,2]
[420844242,1776624638532,-251.38,0.00011628,2]
[420844243,1776624638541,-200.0,0.00011737,2]
[420844244,1776624638550,-500.0,0.00011738,2]
[420844245,1776624638559,-152.0,0.00011836,2]
[420844246,1776624638568,-150.0,0.00011896,2]
[420844247,1776624638578,-255.0,0.00012044,2]
[420844248,1776624638588,-2000.0,0.00012326,2]
[420844249,1776624638597,-26185.74,0.00012356,2]
[420844250,1776624638606,-162.9624,0.00012424,2]
[420844251,1776624638616,-10164.0542163,0.00012458,2]
[420844252,1776624638625,-5381.4319957,0.00012482,2]
[420844253,1776624638634,-500.0,0.000125,2]
[420844254,1776624638644,-2351.0,0.00012566,2]
[420844256,1776624638654,-500.0,0.0001258,2]
[420844257,1776624638663,-184.54,0.00012643,3]
[420844258,1776624638673,-273.47633342,0.00012677,2]
[420844259,1776624638682,-500.0,0.00012748,2]
[420844260,1776624638691,-1977.38,0.00012831,2]
[420844262,1776624638701,-150.0,0.00012862,2]
[420844263,1776624638710,-500.0,0.00012912,2]
[420844264,1776624638722,-1000.0,0.00013048,2]
[420844265,1776624638731,-1885.1,0.00013083,2]
[420844266,1776624638740,-200.57284417,0.00013118,2]
[420844267,1776624638749,-433.0,0.00013188,2]
[420844268,1776624638759,-523.68401068,0.0001346,2]
[420844269,1776624638768,-150.0,0.00013488,2]
[420844270,1776624638777,-150.0,0.00013488,2]
[420844271,1776624638787,-150.0,0.00013488,2]
[420844272,1776624638797,-150.0,0.00013488,2]
[420844273,1776624638807,-150.0,0.00013488,2]
[420844274,1776624638817,-150.0,0.00013488,2]
[420844275,1776624638826,-150.0,0.00013488,2]
[420844276,1776624638836,-150.0,0.00013488,2]
[420844277,1776624638845,-150.0,0.00013488,2]
[420844278,1776624638854,-150.0,0.00013488,2]
[420844279,1776624638863,-150.0,0.00013488,2]
[420844280,1776624638872,-150.0,0.00013488,2]
[420844281,1776624638882,-150.0,0.00013488,2]
[420844282,1776624638891,-150.0,0.00013529,2]
[420844283,1776624638900,-150.0,0.00013571,2]
[420844284,1776624638910,-5000.0,0.000136,2]
[420844285,1776624638919,-268.13510401,0.00013609,2]
[420844286,1776624638929,-150.0,0.00013613,2]
[420844287,1776624638938,-150.0,0.00013654,2]
[420844288,1776624638948,-150.0,0.00013654,2]
[420844289,1776624638957,-150.0,0.00013696,2]
[420844290,1776624638967,-500.0,0.00013698,2]
[420844291,1776624638977,-500.0,0.00013698,2]
[420844292,1776624638986,-500.0,0.00013698,2]
[420844293,1776624638995,-500.0,0.00013698,2]
[420844294,1776624639004,-500.0,0.00013698,2]
[420844295,1776624639013,-500.0,0.00013698,2]
[420844296,1776624639023,-500.0,0.00013698,2]
[420844297,1776624639032,-302.69,0.00013698,2]
[420844298,1776624639042,-200.0,0.00013699,2]
[420844299,1776624639051,-786.99,0.00013699,2]
[420844300,1776624639061,-987.24,0.00013699,2]
[420844301,1776624639070,-10164.0542163,0.00013721,2]
[420844302,1776624639080,-150.0,0.00013737,2]
[420844303,1776624639089,-150.0,0.00013737,2]
[420844304,1776624639099,-150.0,0.00013737,2]
[420844305,1776624639108,-5381.4319957,0.00013756,2]
[420844306,1776624639117,-150.0,0.00013779,2]
[420844307,1776624639126,-150.0,0.00013787,2]
[420844308,1776624639136,-150.0,0.00013821,2]
[420844309,1776624639146,-150.0,0.00013821,2]
[420844310,1776624639155,-162.6962,0.00013821,2]
[420844311,1776624639164,-3292.0,0.00013823,2]
[420844312,1776624639174,-209.48,0.00013837,2]
[420844313,1776624639183,-150.0,0.00013862,2]
[420844314,1776624639192,-150.0,0.00013862,2]
[420844315,1776624639202,-2000.0,0.00013866,2]
[420844316,1776624639211,-150.0,0.00013904,2]
[420844317,1776624639220,-314.22,0.00013913,2]
[420844319,1776624639229,-150.0,0.00013946,2]
[420844320,1776624639238,-198.91669,0.00013962,2]
[420844321,1776624639247,-168.866731,0.00013962,7]
[420844322,1776624639256,-160.0,0.00013962,7]
[420844323,1776624639266,-982.323198,0.00013962,7]
[420844324,1776624639275,-1804.646397,0.00013962,7]
[420844325,1776624639289,-160.0,0.00013962,2]
[420844326,1776624639299,-921.290812,0.00013962,2]
[420844327,1776624639308,-1682.581624,0.00013962,2]
[420844328,1776624639318,-160.0,0.00013962,7]
[420844329,1776624639327,-534.881291,0.00013962,7]
[420844330,1776624639337,-909.762583,0.00013962,7]
[420844331,1776624639347,-160.0,0.00013962,7]
[420844332,1776624639356,-369.832527,0.00013962,7]
[420844333,1776624639366,-579.665055,0.00013962,7]
[420844334,1776624639376,-302.69,0.00013972,2]
[420844335,1776624639386,-786.99,0.00013973,2]
[420844336,1776624639395,-987.24,0.00013973,2]
[420844337,1776624639405,-150.0,0.00013987,2]
[420844338,1776624639414,-150.0,0.00013987,2]
[420844339,1776624639423,-150.0,0.00013987,2]
[420844340,1776624639434,-150.0,0.00013987,2]
[420844341,1776624639443,-150.0,0.00014029,2]
[420844342,1776624639453,-150.0,0.0001407,2]
[420844343,1776624639463,-1899.8842,0.00014073,2]
[420844344,1776624639472,-150.0,0.00014087,2]
[420844345,1776624639482,-150.0,0.00014112,2]
[420844346,1776624639491,-150.0,0.00014154,2]
[420844348,1776624639501,-150.0,0.00014154,2]
[420844350,1776624639511,-160.0,0.00014161,7]
[420844352,1776624639520,-2507.442115,0.00014161,7]
[420844353,1776624639530,-4854.88423,0.00014161,7]
[420844354,1776624639539,-150.0,0.00014195,2]
[420844355,1776624639549,-150.0,0.00014237,2]
[420844356,1776624639558,-150.0,0.00014237,2]
[420844357,1776624639568,-150.0,0.00014237,2]
[420844358,1776624639577,-150.0,0.00014237,2]
[420844359,1776624639586,-150.0,0.00014237,2]
[420844360,1776624639596,-302.69,0.00014246,2]
[420844361,1776624639605,-786.99,0.00014247,2]
[420844362,1776624639615,-987.24,0.00014247,2]
[420844363,1776624639624,-150.0,0.00014279,2]
[420844364,1776624639634,-150.0,0.0001432,2]
[420844365,1776624639644,-150.0,0.0001432,2]
[420844366,1776624639654,-150.0,0.00014362,2]
[420844367,1776624639663,-150.0,0.00014387,2]
[420844368,1776624639672,-150.0,0.00014404,2]
[420844369,1776624639682,-736.0,0.00014442,2]
[420844370,1776624639697,-150.0,0.00014445,2]
[420844371,1776624639707,-150.0,0.00014487,2]
[420844372,1776624639717,-150.0,0.00014487,2]
[420844373,1776624639728,-150.0,0.00014487,2]
[420844374,1776624639737,-150.0,0.00014487,2]
[420844375,1776624639747,-600.0,0.000145,5]
[420844376,1776624639757,-302.69,0.0001452,2]
[420844377,1776624639766,-786.99,0.00014521,2]
[420844378,1776624639777,-987.24,0.00014521,2]
[420844379,1776624639787,-150.0,0.00014528,2]
[420844380,1776624639799,-150.0,0.00014546,2]
[420844381,1776624639809,-160.0,0.00014548,2]
[420844382,1776624639819,-150.0,0.0001457,2]
[420844383,1776624639830,-174.67353777,0.00014597,2]
[420844384,1776624639841,-1300.0,0.000146,5]
[420844385,1776624639852,-150.0,0.00014612,2]
[420844386,1776624639861,-150.0,0.00014612,2]
[420844387,1776624639871,-150.0,0.00014653,2]
[420844388,1776624639880,-150.0,0.00014653,2]
[420844389,1776624639890,-2009.297451,0.0001466,7]
[420844390,1776624639899,-1256.305652,0.0001466,2]
[420844391,1776624639909,-729.383579,0.0001466,7]
[420844392,1776624639919,-756.475625,0.0001466,7]
[420844393,1776624639928,-361.31,0.00014662,2]
[420844394,1776624639937,-150.0,0.00014687,2]
[420844395,1776624639947,-150.0,0.00014695,2]
[420844396,1776624639956,-2000.0,0.000147,5]
[420844397,1776624639966,-10926.75109504,0.0001472,2]
[420844398,1776624639975,-150.0,0.00014728,2]
[420844399,1776624639985,-150.0,0.00014736,2]
[420844400,1776624639995,-150.0,0.00014737,2]
[420844401,1776624640004,-150.0,0.00014737,2]
[420844402,1776624640014,-150.0,0.00014737,2]
[420844403,1776624640024,-150.0,0.00014737,2]
[420844404,1776624640033,-542.77231261,0.00014739,2]
[420844405,1776624640043,-457.3466933,0.00014739,2]
[420844406,1776624640053,-500.0,0.00014739,2]
[420844407,1776624640063,-542.77231261,0.00014739,2]
[420844408,1776624640073,-152.15411963,0.00014739,2]
[420844409,1776624640087,-234.3039503,0.00014739,2]
[420844410,1776624640096,-542.77231261,0.00014739,2]
[420844411,1776624640107,-500.0,0.00014739,2]
[420844412,1776624640117,-542.77231261,0.00014739,2]
[420844413,1776624640127,-542.77231261,0.00014739,2]
[420844414,1776624640136,-217.29227619,0.00014739,2]
[420844415,1776624640146,-542.77231261,0.00014739,2]
[420844416,1776624640156,-542.77231261,0.00014739,2]
[420844417,1776624640166,-542.77231261,0.00014739,2]
[420844418,1776624640176,-542.77231261,0.00014739,2]
[420844419,1776624640186,-542.77231261,0.00014739,2]
[420844420,1776624640195,-542.77231261,0.00014739,2]
[420844421,1776624640205,-542.77231261,0.00014739,2]
[420844422,1776624640215,-542.77231261,0.00014739,2]
[420844423,1776624640225,-542.77231261,0.00014739,2]
[420844425,1776624640235,-542.77231261,0.00014739,2]
[420844426,1776624640245,-542.77231261,0.00014739,2]
[420844427,1776624640254,-542.77231261,0.00014739,2]
[420844428,1776624640264,-542.77231261,0.00014739,2]
[420844429,1776624640274,-542.77231261,0.00014739,2]
[420844430,1776624640283,-542.77231261,0.00014739,2]
[420844431,1776624640294,-542.77231261,0.00014739,2]
[420844432,1776624640303,-542.77231261,0.00014739,2]
[420844433,1776624640313,-542.77231261,0.00014739,2]
[420844434,1776624640322,-542.77231261,0.00014739,2]
[420844435,1776624640333,-542.77231261,0.00014739,2]
[420844436,1776624640343,-542.77231261,0.00014739,2]
[420844437,1776624640353,-542.77231261,0.00014739,2]
[420844438,1776624640363,-542.77231261,0.00014739,2]
[420844439,1776624640372,-542.77231261,0.00014739,2]
[420844440,1776624640382,-542.77231261,0.00014739,2]
[420844441,1776624640392,-542.77231261,0.00014739,2]
[420844442,1776624640402,-542.77231261,0.00014739,2]
[420844443,1776624640412,-542.77231261,0.00014739,2]
[420844444,1776624640421,-542.77231261,0.00014739,2]
[420844445,1776624640431,-542.77231261,0.00014739,2]
[420844446,1776624640441,-542.77231261,0.00014739,2]
[420844447,1776624640451,-542.77231261,0.00014739,2]
[420844448,1776624640460,-542.77231261,0.00014739,2]
[420844449,1776624640470,-542.77231261,0.00014739,2]
[420844450,1776624640483,-542.77231261,0.00014739,2]
[420844451,1776624640493,-542.77231261,0.00014739,2]
[420844452,1776624640503,-542.77231261,0.00014739,2]
[420844453,1776624640513,-542.77231261,0.00014739,2]
[420844454,1776624640523,-542.77231261,0.00014739,2]
[420844455,1776624640532,-542.77231261,0.00014739,2]
[420844456,1776624640543,-542.77231261,0.00014739,2]
[420844457,1776624640552,-542.77231261,0.00014739,2]
[420844458,1776624640562,-542.77231261,0.00014739,2]
[420844459,1776624640572,-542.77231261,0.00014739,2]
[420844460,1776624640582,-542.77231261,0.00014739,2]
[420844461,1776624640592,-542.77231261,0.00014739,2]
[420844462,1776624640601,-542.77231261,0.00014739,2]
[420844463,1776624640611,-542.77231261,0.00014739,2]
[420844464,1776624640621,-10926.75109501,0.0001474,2]
[420844465,1776624640632,-1000.0,0.00014748,2]
[420844466,1776624640642,-10926.75109501,0.0001476,2]
[420844467,1776624640651,-150.0,0.00014765,2]
[420844468,1776624640662,-150.0,0.00014778,2]
[420844469,1776624640672,-10926.75109501,0.0001478,2]
[420844470,1776624640682,-302.70461589,0.00014794,2]
[420844471,1776624640692,-786.99,0.00014795,2]
[420844472,1776624640702,-987.24,0.00014795,2]
[420844473,1776624640711,-10926.75109501,0.000148,2]
[420844474,1776624640721,-1707.76667743,0.000148,5]
[420844475,1776624640962,-921.27653065,0.000148,5]
[420844476,1776624641110,-70.95679192,0.000148,5]
[420844477,1776624641121,-150.0,0.0001482,2]
[420844478,1776624641130,-150.0,0.0001482,2]
[420844479,1776624641140,-788.98677879,0.0001482,2]
[420844480,1776624641156,-7475.7,0.0001482,2]
[420844481,1776624641168,-994.3940699,0.0001482,2]
[420844482,1776624641180,-675.39141624,0.0001482,2]
[420844483,1776624641193,-992.27883008,0.0001482,2]
[420844484,1776624641203,-150.0,0.00014829,2]
[420844485,1776624641212,-1000.0,0.00014832,2]
[420844486,1776624641222,-10926.75109501,0.0001484,2]
[420844487,1776624641232,-150.0,0.00014844,2]
[420844488,1776624641242,-150.0,0.00014847,2]
[420844489,1776624641252,-157.4443109,0.00014856,2]
[420844490,1776624641262,-10926.75109501,0.0001486,2]
[420844491,1776624641272,-150.0,0.00014861,2]
[420844492,1776624641282,-3419.239248,0.00014869,7]
[420844493,1776624641292,-150.0,0.0001487,2]
[420844494,1776624641307,-500.0,0.00014878,2]
[420844495,1776624641319,-150.0,0.00014879,2]
[420844496,1776624641329,-10926.75109501,0.0001488,2]
[420844497,1776624641340,-154.08578314,0.00014881,2]
[420844498,1776624641350,-150.0,0.00014884,2]
[420844499,1776624641360,-1952.41939992,0.000149,2]
[420844500,1776624641370,-1000.0,0.000149,2]
[420844501,1776624641381,-1409.54963564,0.000149,2]
[420844502,1776624641391,-5000.0,0.000149,2]
[420844503,1776624641401,-109728.27819924,0.000149,2]
[420844504,1776624641412,-10000.0,0.000149,2]
[420844505,1776624641422,-3400.0,0.000149,5]
[420844506,1776624641432,-10926.75109501,0.000149,2]
[420844507,1776624641443,-4293.18607236,0.000149,2]
[420844508,1776624641452,-2693.29523946,0.000149,2]
[420844509,1776624641462,-150.0,0.00014903,2]
[420844510,1776624641472,-150.0,0.0001493,2]
[420844511,1776624641482,-1000.0,0.00014932,2]
[420844512,1776624641492,-150.0,0.00014945,2]
[420844513,1776624641502,-150.0,0.00014948,2]
[420844514,1776624641512,-3529.79897366,0.00014959,2]
[420844515,1776624641525,-5092.83737831,0.00014959,2]
[420844516,1776624641537,-28589.36364803,0.00014959,2]
[420844517,1776624641546,-572.55,0.00014985,2]
[420844518,1776624641556,-247.45,0.00014985,2]
[420844519,1776624641566,-150.03,0.00014985,2]
[420844520,1776624641576,-243.62,0.00014985,2]
[420844521,1776624641585,-179.34260199,0.00014986,2]
[420844522,1776624641595,-150.0,0.00014986,2]
[420844523,1776624641605,-292.1693822,0.00014986,2]
[420844524,1776624641615,-150.00000001,0.00014986,2]
[420844525,1776624641625,-150.00000001,0.00014986,2]
[420844526,1776624641635,-242.74312326,0.00014986,2]
[420844527,1776624641644,-150.0,0.00014986,2]
[420844528,1776624641654,-150.0,0.00014986,2]
[420844529,1776624641664,-150.0,0.00014986,2]
[420844530,1776624641674,-150.0,0.00014986,2]
[420844531,1776624641684,-161.0,0.0001499,2]
[420844532,1776624641694,-1162.04130653,0.0001499,2]
[420844533,1776624641707,-1162.04130653,0.0001499,2]
[420844534,1776624641717,-150.0,0.00014995,2]
[420844535,1776624641727,-500.0,0.00014999,2]
[420844536,1776624641736,-500.0,0.00014999,2]
[420844537,1776624641747,-500.0,0.00014999,2]
[420844538,1776624641756,-500.0,0.00014999,2]
[420844539,1776624641766,-500.0,0.00014999,2]
[420844540,1776624641776,-500.0,0.00014999,2]
[420844541,1776624641786,-500.0,0.00014999,2]
[420844542,1776624641796,-451.33702453,0.00014999,2]
[420844543,1776624641806,-300.0,0.00014999,2]
[420844544,1776624641816,-87344.37580607,0.00015,2]
[420844545,1776624641839,-2434.79182097,0.00015,2]
[420844546,1776624641851,-2642.63241699,0.00015,2]
[420844547,1776624641863,-11325.65610205,0.00015,2]
[420844548,1776624641879,-985.20374786,0.00015,2]
[420844549,1776624641893,-971.91375989,0.00015,2]
[420844550,1776624641905,-6127.228,0.00015,2]
[420844551,1776624642092,-802619.78646956,0.00015,2]
[420844556,1776624643229,-15183.0928737,0.00015,2]
[420844558,1776624643352,-192582.51003469,0.00015,2]
[420844559,1776624643366,-22295.84854234,0.00015,2]
[420844560,1776624643380,-346.4546635,0.00015,2]
[420844561,1776624643393,-665.86939559,0.00015,2]
[420844562,1776624643415,-4840.85945635,0.00015,2]
[420844611,1776624648025,-387.538492,0.00013962,2]
[420844612,1776624648035,-264.23079,0.0001466,2]
[420844613,1776624648044,-167.6,0.00014825,2]
[420844614,1776624648053,-223.3406653,0.000149,2]
[420844615,1776624648062,-3887.83704221,0.00015,2]
[420844616,1776624648074,-23168.7,0.00015,2]
[420844617,1776624648091,-4808.78639373,0.000124,2]
[420844618,1776624648103,-136.73981975,0.000124,2]
[420844619,1776624648112,-509.01986941,0.00015,2]
[420844621,1776624995222,163.11,9.122e-05,2]
[420844622,1776625249241,10000.0,0.000163,30]
[420844628,1776625494397,150.0,9.747e-05,2]
[420844629,1776625494843,246.0,9.747e-05,2]
[420844630,1776625511013,-500.0,0.0001,2]
[420844631,1776625511036,-37.61828172,0.0001,2]
[420844632,1776625513974,-150.25647707,0.0001,2]
[420844633,1776625513999,-149.74352293,0.00010023,2]
[420844634,1776625515308,-500.0,0.00010023,2]
[420844635,1776625518301,-343.96,0.00010023,2]
[420844636,1776625522900,-286.0,0.00010023,2]
[420844637,1776625528211,500.0,9.9e-05,2]
[420844638,1776625560512,-279.0,0.00010023,2]
[420844639,1776625560542,-3720.29647707,0.00010023,2]
[420844640,1776625560570,-150.0,0.00010047,2]
[420844641,1776625560599,-250.0,0.0001005,2]
[420844642,1776625560626,-261.95881272,0.000101,2]
[420844643,1776625560701,-4901.89,0.00010118,2]
[420844644,1776625561136,-277.49942042,0.00010139,2]
[420844645,1776625561150,-22.50057958,0.00010139,2]
[420844646,1776625561160,-173.72942042,0.00010173,2]
[420844647,1776625563018,-10000.01,0.00010173,2]
[420844648,1776625563201,-3040.27942042,0.00010173,2]
[420844649,1776625563224,-3919.45115916,0.00010173,2]
[420844650,1776625694511,500.0,9.9e-05,2]
[420844651,1776625753555,1600.0,9.988e-05,2]
[420844652,1776625831862,-280.0,0.00010125,2]
[420844653,1776625831872,-180.99,0.00010125,2]
[420844654,1776625831881,-90.274,0.00010179,2]
[420844655,1776625831904,-209.726,0.00010179,2]
[420844656,1776625831913,-300.0,0.00010179,2]
[420844657,1776625831922,-600.88479819,0.00010179,2]
[420844658,1776625831933,-599.11520181,0.00010179,2]
[420844659,1776625831942,-21.31309022,0.0001018,2]
[420844660,1776625831954,-11419.80690978,0.0001018,2]
[420844661,1776625831963,-180.16,0.0001024,2]
[420844662,1776625831972,-1865.26,0.00010262,2]
[420844663,1776625831982,-150.0,0.00010279,2]
[420844664,1776625831991,-150.0,0.00010449,2]
[420844665,1776625832000,-8588.22,0.00010481,2]
[420844666,1776625832010,-4840.21,0.00010489,2]
[420844667,1776625832019,-180.99,0.00010688,2]
[420844668,1776625832028,-21000.93442697,0.000107,2]
[420844669,1776625832038,-150.0,0.00010799,2]
[420844670,1776625832047,-150.0,0.000108,2]
[420844671,1776625832056,-150.0,0.000108,2]
[420844672,1776625832065,-150.0,0.000108,2]
[420844673,1776625832075,-150.0,0.000108,2]
[420844674,1776625832084,-150.0,0.000108,2]
[420844675,1776625832093,-150.0,0.000108,2]
[420844676,1776625832102,-150.0,0.000108,2]
[420844677,1776625832111,-150.0,0.000108,2]
[420844678,1776625832121,-150.0,0.000108,2]
[420844679,1776625832131,-150.0,0.000108,2]
[420844680,1776625832140,-2004.48289,0.00010959,2]
[420844682,1776625832150,-3388.0,0.00010959,2]
[420844683,1776625832159,-3388.0,0.00010959,2]
[420844684,1776625832169,-3224.0,0.00010959,2]
[420844685,1776625832178,-150.0,0.00010959,2]
[420844687,1776625832188,-587.3691,0.00010996,2]
[420844689,1776625832197,-14246.0009,0.00010996,2]
[420844691,1776625832207,-1032.6192,0.00010996,2]
[420844693,1776625832216,-500.0,0.00011073,2]
[420844695,1776625832225,-500.24218532,0.00011073,2]
[420844697,1776625832234,-500.0,0.00011073,2]
[420844699,1776625832244,-500.0,0.00011073,2]
[420844700,1776625832253,-362.00417451,0.00011073,2]
[420844702,1776625832262,-500.0,0.00011073,2]
[420844704,1776625832272,-500.29614553,0.00011073,2]
[420844706,1776625832281,-500.0,0.00011073,2]
[420844708,1776625832290,-500.1935234,0.00011073,2]
[420844710,1776625832300,-500.0,0.00011073,2]
[420844712,1776625832309,-500.0,0.00011073,2]
[420844713,1776625832318,-166.35933564,0.00011073,2]
[420844714,1776625832327,-500.19912278,0.00011073,2]
[420844715,1776625832337,-500.0,0.00011073,2]
[420844716,1776625832346,-368.95770627,0.00011073,2]
[420844717,1776625832356,-500.38515044,0.00011073,2]
[420844718,1776625832365,-500.0,0.00011073,2]
[420844719,1776625832374,-200.0,0.0001109,2]
[420844720,1776625832383,-151.0,0.0001109,2]
[420844721,1776625832393,-500.0,0.0001109,2]
[420844722,1776625832402,-151.0,0.0001109,2]
[420844723,1776625832411,-500.0,0.0001109,2]
[420844724,1776625832420,-500.0,0.0001109,2]
[420844725,1776625832429,-500.0,0.0001109,2]
[420844726,1776625832438,-500.0,0.0001109,2]
[420844727,1776625832447,-500.0,0.0001109,2]
[420844728,1776625832456,-500.0,0.0001109,2]
[420844729,1776625832465,-500.0,0.0001109,2]
[420844730,1776625832474,-151.0,0.0001109,2]
[420844731,1776625832483,-500.0,0.0001109,2]
[420844732,1776625832492,-151.0,0.0001109,2]
[420844733,1776625832502,-500.0,0.0001109,2]
[420844734,1776625832511,-151.0,0.0001109,2]
[420844735,1776625832521,-500.0,0.0001109,2]
[420844736,1776625832530,-500.0,0.0001109,2]
[420844737,1776625832539,-151.0,0.0001109,2]
[420844738,1776625832549,-500.0,0.0001109,2]
[420844739,1776625832558,-151.0,0.0001109,2]
[420844740,1776625832568,-151.0,0.0001109,2]
[420844741,1776625832578,-151.0,0.0001109,2]
[420844742,1776625832587,-151.0,0.0001109,2]
[420844743,1776625832596,-151.0,0.0001109,2]
[420844744,1776625832606,-151.0,0.0001109,2]
[420844745,1776625832615,-151.0,0.0001109,2]
[420844746,1776625832624,-500.0,0.0001109,2]
[420844747,1776625832633,-500.0,0.0001109,2]
[420844748,1776625832642,-500.0,0.0001109,2]
[420844749,1776625832652,-500.0,0.0001109,2]
[420844750,1776625832663,-500.0,0.0001109,2]
[420844751,1776625832672,-500.0,0.0001109,2]
[420844752,1776625832682,-500.0,0.0001109,2]
[420844753,1776625832691,-500.0,0.0001109,2]
[420844754,1776625832700,-500.0,0.0001109,2]
[420844755,1776625832709,-151.0,0.0001109,2]
[420844756,1776625832718,-500.0,0.0001109,2]
[420844757,1776625832727,-500.0,0.0001109,2]
[420844758,1776625832736,-500.0,0.0001109,2]
[420844759,1776625832746,-151.0,0.0001109,2]
[420844760,1776625832755,-500.0,0.0001109,2]
[420844761,1776625832765,-151.0,0.0001109,2]
[420844762,1776625832774,-500.0,0.0001109,2]
[420844763,1776625832783,-160.95570324,0.0001109,2]
[420844764,1776625832791,-151.0,0.0001109,2]
[420844765,1776625832801,-151.0,0.0001109,2]
[420844766,1776625832810,-151.0,0.0001109,2]
[420844767,1776625832819,-151.0,0.0001109,2]
[420844768,1776625832830,-151.0,0.0001109,2]
[420844769,1776625832841,-151.0,0.0001109,2]
[420844770,1776625832851,-151.0,0.0001109,2]
[420844771,1776625832860,-151.0,0.0001109,2]
[420844772,1776625832870,-151.0,0.0001109,2]
[420844773,1776625832879,-151.0,0.0001109,2]
[420844774,1776625832888,-151.0,0.0001109,2]
[420844775,1776625832897,-151.0,0.0001109,2]
[420844776,1776625832907,-151.0,0.0001109,2]
[420844777,1776625832915,-151.0,0.0001109,2]
[420844778,1776625832925,-151.0,0.0001109,2]
[420844779,1776625832934,-151.0,0.0001109,2]
[420844780,1776625832943,-151.0,0.0001109,2]